bitfinex/quotes_SOLUSD_20241111
["timestamp","ask_amount","ask_price","bid_price","bid_amount"]
[1731342385687,20.0,220.29,220.12,0.1]
[1731342385887,20.0,220.29,220.08,0.1]
[1731342386296,20.0,220.29,220.1,0.1]
[1731342386498,20.0,220.29,220.08,0.1]
[1731342387292,20.0,220.29,220.04,2.12]
[1731342387293,0.1,220.26,220.04,2.12]
[1731342387593,0.1,220.22,219.97,0.1]
[1731342387800,0.1,220.22,219.93,0.1]
[1731342388005,20.0,220.2,219.93,0.1]
[1731342388203,20.0,220.2,219.82,0.1]
[1731342388204,0.1,220.18,219.89,0.1]
[1731342388413,20.0,220.2,219.89,0.1]
[1731342388414,6.4887,220.14,219.89,0.1]
[1731342388587,6.4887,220.14,219.78,6.0664]
[1731342388588,0.1,220.11,219.84,0.1]
[1731342388791,0.1,220.11,219.69,0.1]
[1731342388792,0.1,220.11,219.82,0.1]
[1731342389108,0.1,220.11,219.61,0.1]
[1731342389109,0.1,219.93,219.61,0.1]
[1731342389290,0.1,219.9,219.62,1.04075871]
[1731342389492,3.6375,219.93,219.73,0.1]
[1731342389693,26.504,219.95,219.67,0.1]
[1731342389919,2.12,219.89,219.67,0.1]
[1731342390288,2.12,219.89,219.65,0.1]
[1731342390491,2.12,219.89,219.68,0.1]
[1731342390708,2.12,219.89,219.72,0.1]
[1731342390910,2.12,219.89,219.68,0.1]
[1731342391807,2.12,219.89,219.41,22.48103102]
[1731342391808,2.12,219.89,219.72,0.1]
[1731342392011,2.12,219.89,219.52,0.1]
[1731342392012,2.12,219.89,219.68,0.1]
[1731342392192,2.12,219.89,219.42,0.91011985]
[1731342392193,0.1,219.88,219.66,0.1]
[1731342392510,0.1,219.86,219.65,0.1]
[1731342392898,20.0,219.88,219.56,0.1]
[1731342393222,0.1,219.84,219.65,0.1]
[1731342394212,2.12,219.89,219.65,0.1]
[1731342394521,2.12,219.89,219.45,0.1]
[1731342394522,15.5549,219.83,219.57,0.1]
[1731342394706,6.6276,219.81,219.55,0.1]
[1731342394906,20.0,219.8,219.55,0.1]
[1731342395095,20.0,219.8,219.57,0.1]
[1731342396294,0.1,219.79,219.53,0.1]
[1731342396490,0.1,219.76,219.49,0.1]
[1731342396796,20.0,219.74,219.48,0.1]
[1731342396997,20.0,219.74,219.51,0.1]
[1731342397192,23.6406,219.74,219.43,0.1]
[1731342397412,0.1,219.69,219.44,1.04161241]
[1731342397715,0.1,219.63,219.44,1.04161241]
[1731342397921,25.52364236,219.68,219.44,1.04161241]
[1731342397922,0.1,219.65,219.44,1.04161241]
[1731342398101,20.0,219.66,219.46,0.1]
[1731342398511,20.0,219.66,219.43,0.1]
[1731342398793,0.1,219.68,219.27,70.0]
[1731342398794,0.1,219.68,219.41,0.1]
[1731342398994,0.1,219.68,219.27,70.0]
[1731342398995,20.0,219.66,219.46,0.1]
[1731342399198,20.0,219.66,219.49,0.1]
[1731342399395,20.0,219.66,219.39,0.1]
[1731342399608,0.1,219.65,219.37,0.1]
[1731342399796,0.1,219.59,219.34,0.1]
[1731342400002,20.0,219.64,219.39,0.1]
[1731342400204,20.0,219.64,219.12,22.78049062]
[1731342400205,0.1,219.55,219.26,0.1]
[1731342400405,20.0,219.62,219.08,0.1]
[1731342400406,20.0,219.53,219.42,0.1]
[1731342400597,21.9678,219.63,219.27,1.04241997]
[1731342400598,21.9678,219.63,219.44,0.1]
[1731342401205,21.9678,219.63,219.42,0.1]
[1731342401395,21.9678,219.63,219.44,0.1]
[1731342401598,21.9678,219.63,219.46,0.1]
[1731342401820,21.9678,219.63,219.42,0.1]
[1731342402118,21.9678,219.63,219.37,0.1]
[1731342402416,20.0,219.62,219.39,0.1]
[1731342402915,20.0,219.62,219.21,0.1]
[1731342402916,0.1,219.61,219.34,0.1]
[1731342403119,0.1,219.58,219.3,0.1]
[1731342403320,20.0,219.58,219.36,0.1]
[1731342403521,20.0,219.58,219.32,0.1]
[1731342403723,20.0,219.58,219.39,0.1]
[1731342404015,20.0,219.58,219.4,0.1]
[1731342404219,20.0,219.62,219.4,0.1]
[1731342404425,21.9678,219.63,219.46,0.1]
[1731342404720,21.9678,219.63,219.53,0.1]
[1731342404925,21.9678,219.63,219.49,0.1]
[1731342405126,15.3593,219.63,219.55,0.1]
[1731342405308,6.3844,219.72,219.54,0.1]
[1731342405309,16.495,219.7,219.54,0.1]
[1731342405623,16.495,219.7,219.59,0.1]
[1731342405802,16.495,219.7,219.35,15.686]
[1731342405803,16.495,219.7,219.47,0.1]
[1731342406007,16.495,219.7,219.33,5.286345]
[1731342406008,16.495,219.7,219.43,0.1]
[1731342406324,16.495,219.7,219.46,0.1]
[1731342406508,0.1,219.63,219.06,22.98506513]
[1731342406710,0.1,219.63,219.02,13.53]
[1731342406711,0.91131022,219.62,219.35,70.0]
[1731342406918,0.91131022,219.68,219.35,70.0]
[1731342407131,0.91131022,219.68,219.44,70.0]
[1731342407332,0.91131022,219.68,219.36,0.91095309]
[1731342407333,0.91131022,219.68,219.45,0.91060583]
[1731342407532,42.4574,219.83,219.45,0.91060583]
[1731342407533,0.1,219.72,219.45,4.90455342]
[1731342407825,0.91131022,219.71,219.47,0.62]
[1731342408007,0.91131022,219.76,219.47,0.62]
[1731342408207,0.91131022,219.76,219.48,4.90455342]
[1731342408705,0.91131022,219.76,219.51,0.62]
[1731342408899,0.1,219.8,219.51,0.62]
[1731342409125,0.1,219.79,219.51,0.62]
[1731342409420,15.1874,219.83,219.51,0.62]
[1731342409421,0.91131022,219.78,219.51,0.62]
[1731342409803,0.91131022,219.82,219.53,70.0]
[1731342410124,0.91131022,219.82,219.54,0.62]
[1731342410420,1.01131022,219.82,219.54,0.62]
[1731342410926,0.1,219.78,219.54,0.62]
[1731342411131,0.91131022,219.77,219.54,0.62]
[1731342411339,0.1,219.76,219.54,0.62]
[1731342411618,15.1874,219.83,219.54,0.62]
[1731342411619,0.91131022,219.75,219.54,0.62]
[1731342411823,15.2874,219.83,219.54,0.62]
[1731342411824,1.11131022,219.8,219.54,0.62]
[1731342412025,0.2,219.74,219.54,0.62]
[1731342412203,0.1,219.68,219.54,0.62]
[1731342412406,0.1,219.58,219.3,6.0978]
[1731342412614,0.91131022,219.57,219.31,1.04222985]
[1731342412913,0.2,219.53,219.31,1.04222985]
[1731342413227,1.01131022,219.52,219.31,1.04222985]
[1731342413417,21.01131022,219.52,219.31,1.04222985]
[1731342413605,0.1,219.5,219.31,1.04222985]
[1731342413934,0.91131022,219.5,219.31,1.04222985]
[1731342414234,1.01131022,219.5,219.31,1.04222985]
[1731342415934,0.91131022,219.49,219.31,1.04222985]
[1731342416819,20.0,219.47,219.31,1.04222985]
[1731342417009,0.91131022,219.46,219.31,1.04222985]
[1731342418322,20.0,219.45,219.31,1.04222985]
[1731342418524,0.1,219.41,219.31,1.04222985]
[1731342418727,0.1,219.39,219.31,1.04222985]
[1731342419233,0.1,219.37,219.31,1.04222985]
[1731342419432,0.1,219.36,219.09,6.1045]
[1731342419728,47.27,219.45,219.1,1.04322879]
[1731342419729,1.11131022,219.35,219.1,1.04322879]
[1731342420241,0.91131022,219.35,219.1,1.04322879]
[1731342420528,1.01131022,219.37,219.08,70.0]
[1731342420734,0.1,219.28,219.04,5.67623782]
[1731342420936,0.91131022,219.34,219.05,0.91244428]
[1731342421313,0.91131022,219.34,219.07,70.0]
[1731342421516,0.1,219.4,219.1,70.0]
[1731342421715,0.91131022,219.39,219.13,70.0]
[1731342422031,6.4263,219.46,219.13,70.0]
[1731342422032,0.91131022,219.45,219.16,70.0]
[1731342422332,0.91131022,219.45,219.17,10.3854127]
[1731342422544,0.91131022,219.45,219.17,15.28996612]
[1731342422831,0.91131022,219.45,219.02,0.91173395]
[1731342422832,0.1,219.39,219.18,5.74846004]
[1731342423214,1.01131022,219.39,219.11,77.19507249]
[1731342423413,0.91131022,219.39,219.12,4.70917488]
[1731342423629,1.01131022,219.39,219.13,6.28290449]
[1731342423831,1.01131022,219.39,219.11,70.0]
[1731342424135,0.1,219.41,219.14,5.21965897]
[1731342424327,1.01131022,219.41,219.15,11.19574604]
[1731342424517,0.91131022,219.41,219.18,70.0]
[1731342424715,0.91131022,219.44,219.19,11.19574604]
[1731342424918,0.91131022,219.44,219.19,9.85941472]
[1731342425123,16.6174,219.48,219.26,70.0]
[1731342425311,16.6174,219.48,219.29,70.0]
[1731342425628,7.26301022,219.57,219.3,6.28290449]
[1731342425813,0.1,219.56,219.25,70.0]
[1731342426015,0.91131022,219.55,219.25,75.51727953]
[1731342426214,0.91131022,219.55,219.29,70.0]
[1731342426426,0.91131022,219.55,219.3,5.51727953]
[1731342426631,0.91131022,219.55,219.3,76.42858669]
[1731342426834,0.91131022,219.55,219.21,6.0886]
[1731342426835,0.91131022,219.55,219.27,6.28290449]
[1731342427171,0.1,219.55,219.28,5.51727953]
[1731342427442,0.91131022,219.56,219.24,5.51727953]
[1731342427443,0.1,219.52,219.24,5.51727953]
[1731342427622,1.11131022,219.52,219.24,5.51727953]
[1731342427820,0.1,219.48,219.21,6.0886]
[1731342428142,0.91131022,219.47,219.17,70.0]
[1731342428320,0.1,219.45,219.18,5.51727953]
[1731342428516,0.91131022,219.45,219.18,5.51727953]
[1731342428711,0.1,219.51,219.22,70.0]
[1731342428926,0.1,219.52,219.25,70.0]
[1731342429124,0.1,219.52,219.21,70.0]
[1731342429325,1.01131022,219.52,219.25,5.79172397]
[1731342429536,1.01131022,219.52,219.26,0.91156085]
[1731342429537,0.91131022,219.52,219.26,0.91156085]
[1731342429741,0.91131022,219.56,219.27,75.79172397]
[1731342429926,0.91131022,219.56,219.28,0.91129399]
[1731342430127,0.1,219.52,219.28,5.79172397]
[1731342430327,0.1,219.52,219.19,70.0]
[1731342430535,1.01131022,219.52,219.19,70.0]
[1731342430840,0.91131022,219.52,219.23,70.0]
[1731342431048,0.1,219.46,219.2,5.21257397]
[1731342431218,0.1,219.41,219.14,8.34966904]
[1731342431417,15.5853,219.4,219.14,70.0]
[1731342431633,15.5853,219.4,219.15,12.20327109]
[1731342431634,0.91131022,219.39,219.15,12.20327109]
[1731342431843,0.91131022,219.39,219.15,17.41584506]
[1731342432024,20.91131022,219.39,219.16,74.76289464]
[1731342432226,20.0,219.39,219.17,7.44020978]
[1731342432443,0.91131022,219.38,219.18,9.97546861]
[1731342432626,0.91131022,219.38,219.18,11.29135468]
[1731342432943,0.91131022,219.38,219.19,6.52846004]
[1731342433123,0.91131022,219.38,219.13,0.91189643]
[1731342433438,0.91131022,219.38,219.14,11.74103401]
[1731342433638,0.91131022,219.38,219.14,6.52846004]
[1731342433837,0.91131022,219.38,219.15,0.91191654]
[1731342434048,0.91131022,219.38,219.16,76.52846004]
[1731342434222,0.91131022,219.38,219.16,6.52846004]
[1731342434539,0.91131022,219.38,219.15,5.21257397]
[1731342434742,20.0,219.37,219.14,5.21257397]
[1731342434946,0.91131022,219.36,219.14,6.1245539]
[1731342435645,0.91131022,219.36,219.14,5.21257397]
[1731342435946,0.1,219.34,219.1,5.21257397]
[1731342436121,0.1,219.34,219.07,6.16734893]
[1731342436122,0.1,219.27,219.07,6.16734893]
[1731342436440,0.1,219.27,218.93,22.27823537]
[1731342436441,0.1,219.17,218.89,70.0]
[1731342436652,20.0,219.23,218.82,70.0]
[1731342436653,0.1,219.09,218.82,70.0]
[1731342436839,0.2,219.11,218.8,1.823921]
[1731342437149,47.27,219.23,218.79,70.0]
[1731342437150,0.91131022,219.1,218.85,70.0]
[1731342437323,0.1,219.09,218.86,5.21257397]
[1731342437523,1.01131022,219.09,218.86,9.75880194]
[1731342437731,0.91131022,219.09,218.86,5.21257397]
[1731342437924,0.91131022,219.14,218.87,4.54622797]
[1731342438130,0.1,219.11,218.87,4.54622797]
[1731342438450,0.91131022,219.11,218.87,4.54622797]
[1731342438630,0.1,219.08,218.81,70.0]
[1731342438833,0.91131022,219.08,218.84,70.0]
[1731342439048,20.0,219.09,218.87,70.0]
[1731342439345,0.91131022,219.08,218.88,9.97113528]
[1731342439546,20.0,219.09,218.88,16.28343421]
[1731342440044,6.0923,219.21,218.95,70.0]
[1731342440250,0.91131022,219.2,218.96,5.21257397]
[1731342440543,1.01131022,219.2,218.96,9.97113528]
[1731342440745,1.01131022,219.2,218.96,4.75856131]
[1731342440942,6.5877,219.05,218.91,5.21257397]
[1731342441148,6.5877,219.05,218.59,6.1889]
[1731342441149,0.1,218.99,218.76,70.0]
[1731342441449,0.1,218.99,218.76,74.2824002]
[1731342441630,0.1,218.99,218.77,4.2824002]
[1731342441827,0.1,218.99,218.77,10.18418802]
[1731342442025,0.1,218.97,218.77,14.87546199]
[1731342442336,0.1,218.97,218.77,10.18418802]
[1731342442529,15.3387,218.91,218.77,5.90178782]
[1731342442847,0.91131022,218.9,218.77,5.90178782]
[1731342443224,20.2,218.88,218.58,70.0]
[1731342443430,0.1,218.86,218.73,5.90178782]
[1731342443642,6.1264,218.73,218.47,70.0]
[1731342443846,0.91131022,218.72,218.5,70.0]
[1731342444049,0.1,218.7,218.51,5.02271874]
[1731342444255,1.11131022,218.72,218.46,70.0]
[1731342444437,0.91131022,218.72,218.47,5.25982806]
[1731342444637,0.91131022,218.72,218.47,75.25982806]
[1731342444839,0.91131022,218.72,218.5,70.0]
[1731342445154,0.91131022,218.72,218.51,5.20968526]
[1731342445744,0.91131022,218.72,218.47,0.91473741]
[1731342445950,0.91131022,218.72,218.52,4.49126686]
[1731342446247,1.01131022,218.72,218.52,4.49126686]
[1731342446636,1.01131022,218.72,218.47,0.91473741]
[1731342446637,0.1,218.69,218.47,5.40600427]
[1731342446843,0.1,218.67,218.48,4.49126686]
[1731342447036,0.91131022,218.67,218.41,70.0]
[1731342447555,0.1,218.62,218.35,74.74327397]
[1731342447741,0.1,218.64,218.35,74.74327397]
[1731342447941,0.91131022,218.63,218.38,70.0]
[1731342448140,18.376502,218.69,218.44,70.0]
[1731342448141,0.91131022,218.67,218.44,70.0]
[1731342448339,0.91131022,218.72,218.47,70.0]
[1731342448532,0.91131022,218.72,218.5,70.0]
[1731342448733,6.1264,218.73,218.56,70.0]
[1731342448933,0.1,218.84,218.57,5.09504464]
[1731342449150,15.3387,218.86,218.56,70.0]
[1731342449331,0.91131022,218.85,218.66,70.0]
[1731342449533,0.1,218.9,218.69,70.0]
[1731342449739,0.1,218.93,218.7,0.91378222]
[1731342449950,0.1,218.93,218.7,5.18600766]
[1731342450142,0.1,218.93,218.71,4.5853002]
[1731342450349,0.1,218.9,218.71,4.5853002]
[1731342450529,0.1,218.88,218.64,4.5853002]
[1731342450727,0.91131022,218.88,218.65,70.0]
[1731342450945,0.91131022,218.88,218.66,4.5853002]
[1731342451749,0.91131022,218.87,218.67,5.18600766]
[1731342452053,0.1,218.9,218.68,4.5853002]
[1731342452353,0.91131022,218.93,218.69,75.18600766]
[1731342452647,0.91131022,218.93,218.7,4.96374464]
[1731342452832,0.91131022,218.93,218.71,5.18600766]
[1731342453035,0.91131022,218.95,218.72,74.96374464]
[1731342453237,0.91131022,218.95,218.73,5.18600766]
[1731342453440,0.91131022,218.95,218.75,70.0]
[1731342453644,0.91131022,218.95,218.76,10.1497523]
[1731342454044,6.99331022,218.96,218.77,6.25366981]
[1731342454261,0.2,218.95,218.78,4.96374464]
[1731342454540,0.91131022,218.94,218.71,5.18600766]
[1731342454755,0.91131022,218.94,218.75,6.25366981]
[1731342454946,6.082,218.96,218.76,4.68373908]
[1731342454947,0.91131022,218.95,218.76,4.68373908]
[1731342455146,1.11131022,218.95,218.76,16.31119433]
[1731342455441,0.1,218.91,218.76,4.68373908]
[1731342455767,0.1,218.89,218.76,4.68373908]
[1731342455944,1.01131022,218.89,218.76,4.68373908]
[1731342456146,0.1,218.85,218.6,70.0]
[1731342456460,0.91131022,218.85,218.6,70.0]
[1731342456645,0.1,218.84,218.6,70.0]
[1731342456842,0.91131022,218.83,218.61,4.43175575]
[1731342457245,0.1,218.84,218.61,6.25774775]
[1731342457540,0.1,218.81,218.57,83.33520634]
[1731342457741,0.1,218.75,218.58,1.82624]
[1731342457940,0.1,218.73,218.57,8.14919868]
[1731342458345,0.1,218.72,218.52,1.826942]
[1731342458548,0.91131022,218.71,218.49,5.18600766]
[1731342458738,1.01131022,218.71,218.49,5.18600766]
[1731342459056,6.0432,218.61,218.5,1.827155]
[1731342459269,0.1,218.57,218.31,70.0]
[1731342459450,0.2,218.59,218.37,6.0432]
[1731342459766,0.91131022,218.58,218.38,5.18600766]
[1731342460062,0.91131022,218.59,218.39,70.0]
[1731342460358,0.91131022,218.59,218.4,5.18600766]
[1731342460538,0.91131022,218.59,218.4,6.10109142]
[1731342460861,15.1599,218.6,218.4,6.10109142]
[1731342461165,0.91131022,218.59,218.38,70.0]
[1731342461365,0.91131022,218.59,218.38,74.66737989]
[1731342461668,0.91131022,218.59,218.41,70.0]
[1731342461958,15.1599,218.6,218.42,5.58231618]
[1731342462863,15.1599,218.6,218.42,4.66737989]
[1731342463361,0.91131022,218.59,218.38,70.0]
[1731342463545,15.1599,218.6,218.38,70.0]
[1731342463752,0.91131022,218.59,218.39,20.74230633]
[1731342464163,0.91131022,218.59,218.39,16.07492644]
[1731342464367,0.91131022,218.59,218.39,15.1599]
[1731342464572,0.1,218.58,218.39,15.1599]
[1731342464777,0.1,218.56,218.36,4.66737989]
[1731342465064,0.2,218.56,218.32,4.66737989]
[1731342465365,0.1,218.54,218.32,4.66737989]
[1731342465665,0.1,218.54,218.28,22.14649573]
[1731342465666,0.1,218.5,218.27,70.0]
[1731342466069,0.91131022,218.53,218.32,1.828665]
[1731342466266,15.1599,218.6,218.32,1.828665]
[1731342466267,0.1,218.55,218.32,1.828665]
[1731342466459,1.01131022,218.55,218.32,1.828665]
[1731342466645,0.1,218.53,218.32,1.828665]
[1731342467047,0.91131022,218.55,218.34,20.0]
[1731342467265,0.1,218.56,218.34,20.0]
[1731342467562,0.91131022,218.58,218.39,70.0]
[1731342467767,0.1,218.56,218.34,20.0]
[1731342467953,1.01131022,218.56,218.33,70.0]
[1731342468152,0.1,218.54,218.33,70.0]
[1731342468351,0.1,218.55,218.33,70.0]
[1731342468658,0.91131022,218.58,218.36,70.0]
[1731342469159,0.1,218.53,218.32,1.828665]
[1731342469364,0.91131022,218.58,218.32,1.828665]
[1731342469365,0.1,218.54,218.32,1.828665]
[1731342469568,1.01131022,218.54,218.32,1.828665]
[1731342469758,1.01131022,218.59,218.35,70.0]
[1731342470573,1.01131022,218.59,218.38,70.0]
[1731342470763,15.1599,218.6,218.44,70.0]
[1731342470970,15.1599,218.6,218.48,70.0]
[1731342471170,15.1599,218.76,218.61,70.0]
[1731342471355,6.3496,218.78,218.61,70.0]
[1731342471550,6.3496,218.78,218.49,25.58205918]
[1731342471867,6.3496,218.78,218.43,6.4231]
[1731342471868,0.1,218.74,218.47,70.0]
[1731342472049,0.1,218.68,218.47,70.0]
[1731342472251,0.2,218.74,218.5,70.0]
[1731342472450,0.1,218.73,218.5,70.0]
[1731342472671,0.91131022,218.73,218.5,70.0]
[1731342472862,0.91131022,218.73,218.51,0.9146017]
[1731342473063,0.1,218.75,218.53,70.0]
[1731342473064,0.1,218.74,218.53,70.0]
[1731342473270,0.1,218.77,218.54,0.91450474]
[1731342473567,6.3496,218.78,218.61,70.0]
[1731342473771,6.3496,218.78,218.62,0.91403245]
[1731342474073,6.3496,218.78,218.61,70.0]
[1731342474575,16.1958,218.85,218.67,70.0]
[1731342475261,0.91131022,218.84,218.63,70.0]
[1731342475585,16.1958,218.85,218.67,70.0]
[1731342476157,1.01131022,218.84,218.63,70.0]
[1731342476374,16.1958,218.85,218.65,70.0]
[1731342476557,0.91131022,218.84,218.65,70.0]
[1731342476758,16.1958,218.85,218.65,70.0]
[1731342476951,0.91131022,218.84,218.65,70.0]
[1731342477172,16.1958,218.85,218.65,70.0]
[1731342477872,16.1958,218.85,218.68,70.0]
[1731342478065,16.1958,218.85,218.69,4.43175575]
[1731342478553,0.91131022,218.84,218.69,4.43175575]
[1731342478759,0.91131022,218.84,218.62,70.0]
[1731342478760,0.1,218.82,218.62,70.0]
[1731342478955,0.1,218.83,218.62,70.0]
[1731342479267,0.1,218.78,218.56,70.0]
[1731342479868,0.1,218.78,218.57,0.91430613]
[1731342480480,1.01131022,218.82,218.6,70.0]
[1731342480680,0.1,218.82,218.64,70.0]
[1731342480856,0.1,218.84,218.64,74.43175575]
[1731342481057,16.1958,218.85,218.67,70.0]
[1731342481264,0.91131022,218.84,218.66,4.43175575]
[1731342481473,16.1958,218.85,218.67,4.65058908]
[1731342481865,0.1,218.83,218.67,4.65058908]
[1731342482069,0.1,218.82,218.63,70.0]
[1731342482283,0.1,218.82,218.66,6.67978092]
[1731342482460,0.1,218.82,218.67,4.65058908]
[1731342482661,0.1,218.82,218.68,6.67978092]
[1731342482865,0.1,218.83,218.69,4.65058908]
[1731342483064,6.2781,218.88,218.72,70.0]
[1731342483271,6.2781,218.88,218.75,70.0]
[1731342483590,6.2781,218.88,218.76,11.76081445]
[1731342484085,6.2781,218.88,218.76,17.01824989]
[1731342484378,6.2781,218.88,218.78,70.0]
[1731342484587,16.4377,218.95,218.81,70.0]
[1731342484873,16.4377,218.95,218.77,0.91362786]
[1731342484874,16.4377,218.95,218.82,17.01824989]
[1731342485078,16.4377,218.95,218.82,11.76081445]
[1731342485276,16.4377,218.95,218.83,75.25743544]
[1731342485581,6.3646,218.97,218.84,11.76081445]
[1731342485876,6.3646,218.97,218.85,5.25743544]
[1731342486079,6.3646,218.97,218.86,81.76081445]
[1731342486282,6.3646,218.97,218.87,5.25743544]
[1731342486467,6.3646,218.97,218.88,11.76081445]
[1731342486783,6.3646,218.97,218.89,5.55282433]
[1731342487078,6.3646,218.97,218.9,11.95581445]
[1731342487379,6.3646,218.97,218.91,5.55282433]
[1731342487579,16.7063,219.05,218.91,5.55282433]
[1731342487580,0.1,219.02,218.92,6.90366981]
[1731342487787,6.4646,219.13,218.97,70.0]
[1731342487964,6.256,219.14,219.04,70.0]
[1731342488167,6.256,219.24,219.1,70.0]
[1731342488480,6.256,219.24,219.16,70.0]
[1731342488676,6.256,219.34,219.16,75.09446686]
[1731342488877,0.1,219.28,219.17,5.09446686]
[1731342489187,0.1,219.23,219.03,70.0]
[1731342489387,0.2,219.18,219.0,70.0]
[1731342489564,0.1,219.23,219.05,70.0]
[1731342489768,0.1,219.25,219.06,70.0]
[1731342489965,0.1,219.27,219.1,70.0]
[1731342490168,0.1,219.32,219.17,70.0]
[1731342490791,0.1,219.32,219.2,70.0]
[1731342491002,6.256,219.34,219.18,0.91191589]
[1731342491162,0.1,219.32,219.17,70.0]
[1731342491671,16.1357,219.37,219.17,70.0]
[1731342491672,6.256,219.43,219.37,70.0]
[1731342491872,0.1,219.58,219.37,70.0]
[1731342491873,0.1,219.58,219.38,0.91108971]
[1731342492171,0.1,219.45,219.39,5.49775575]
[1731342492383,0.1,219.45,219.32,70.0]
[1731342492690,0.2,219.45,219.32,70.0]
[1731342492885,0.1,219.42,219.33,5.49775575]
[1731342493083,0.1,219.45,219.33,5.49775575]
[1731342493293,0.1,219.42,219.33,5.49775575]
[1731342493471,6.0189,219.47,219.26,70.0]
[1731342493472,0.1,219.38,219.26,70.0]
[1731342493669,0.1,219.38,219.23,6.09521322]
[1731342493971,0.1,219.34,219.23,4.94771131]
[1731342494173,0.1,219.35,219.23,70.0]
[1731342494374,0.1,219.34,219.23,70.0]
[1731342494572,0.1,219.35,219.23,70.0]
[1731342494768,0.1,219.38,219.26,70.0]
[1731342494993,0.1,219.36,219.22,70.0]
[1731342495282,0.1,219.38,219.22,76.09521322]
[1731342495479,0.1,219.39,219.25,70.0]
[1731342495480,0.2,219.39,219.25,70.0]
[1731342495869,0.2,219.39,219.22,76.09521322]
[1731342496064,0.1,219.38,219.22,76.09521322]
[1731342496296,0.91131022,219.46,219.18,4.67268908]
[1731342496297,0.1,219.31,219.19,70.0]
[1731342496588,0.1,219.28,219.17,6.49425908]
[1731342496789,0.2,219.3,219.16,70.0]
[1731342497091,0.1,219.31,219.16,70.0]
[1731342497266,0.1,219.32,219.19,70.0]
[1731342497777,0.1,219.33,219.19,70.0]
[1731342497980,0.1,219.35,219.23,70.0]
[1731342498480,0.1,219.36,219.26,70.0]
[1731342498678,0.1,219.37,219.26,70.0]
[1731342498882,0.1,219.38,219.29,70.0]
[1731342499187,0.2,219.44,219.32,70.0]
[1731342499376,0.1,219.41,219.32,70.0]
[1731342499579,0.2,219.46,219.36,70.0]
[1731342499781,0.2,219.46,219.37,4.87852162]
[1731342499994,0.2,219.46,219.14,18.485966]
[1731342499995,0.2,219.46,219.29,76.7486087]
[1731342500288,0.1,219.38,219.29,70.0]
[1731342500490,0.1,219.38,219.32,70.0]
[1731342500670,0.1,219.4,219.36,70.0]
[1731342500866,0.1,219.4,219.3,70.0]
[1731342501071,0.1,219.4,219.26,70.0]
[1731342501072,0.1,219.39,219.26,70.0]
[1731342501286,0.1,219.36,219.25,70.0]
[1731342501674,0.1,219.33,219.25,70.0]
[1731342501990,0.2,219.37,219.28,70.0]
[1731342502290,0.91131022,219.44,219.28,70.0]
[1731342502291,0.2,219.41,219.28,70.0]
[1731342502497,0.1,219.41,219.31,70.0]
[1731342502675,0.91131022,219.46,219.28,70.0]
[1731342502676,0.2,219.39,219.28,70.0]
[1731342502878,0.2,219.41,219.28,70.0]
[1731342503086,0.1,219.41,219.32,70.0]
[1731342503273,0.1,219.41,219.35,70.0]
[1731342503672,6.0189,219.47,219.35,70.0]
[1731342503673,0.1,219.45,219.35,70.0]